[Event "ISR Youth-Ch Finals 2021 U18"]
[Site "Ramat Hasharon"]
[Date "2021.03.22"]
[Round "3.5"]
[White "Gorshtein, Asaf"]
[Black "Stolyarsky, Yegor"]
[Result "0-1"]
[ECO "D00"]
[WhiteElo "2122"]
[BlackElo "2063"]
[Annotator "RC"]
[PlyCount "128"]
[EventDate "2021.03.19"]
[EventType "swiss"]
[EventCountry "ISR"]
[SourceTitle "playchess.com"]
[Source "ChessBase"]
[SourceQuality "1"]
[TimeControl "5400+30"]

1. d4 {[%emt 0:00:00]} Nf6 {[%emt 0:00:00]} 2. Nf3 {[%emt 0:00:17]} g6 {[%emt 0:00:18]} 3. Nc3 {[%emt 0:01:17]} d5 {[%emt 0:01:29]} 4. Bg5 {[%emt 0:01:09]} Bg7 {[%emt 0:00:30]} 5. Bxf6 {[%emt 0:00:20]} exf6 {[%emt 0:01:15]} 6. e3 {[%emt 0:00:34]} O-O {[%emt 0:00:54]} 7. Bd3 {[%emt 0:00:34]} f5 {[%emt 0:00:46]} 8. O-O {[%emt 0:00:19]} h5 {[%emt 0:00:30]} 9. Ne5 {[%emt 0:03:18]} c6 {[%emt 0:01:08]} 10. Ne2 {[%emt 0:01:31]} Qe8 {[%emt 0:02:45]} 11. Nf3 {[%emt 0:05:12]} Nd7 {[%emt 0:00:29]} 12. c4 {[%emt 0:00:17]} Nf6 {[%emt 0:01:11]} 13. cxd5 {[%emt 0:00:22]} Nxd5 {[%emt 0:00:45]} 14. Nc3 {[%emt 0:01:07]} Nf6 {[%emt 0:02:54]} 15. Qb3 {[%emt 0:01:54]} Qe7 {[%emt 0:02:24]} 16. Ne5 {[%emt 0:04:22]} Be6 {[%emt 0:06:08]} 17. Bc4 {[%emt 0:00:21]} Bxc4 {[%emt 0:00:23]} 18. Qxc4 {[%emt 0:00:09]} Kh7 {[%emt 0:01:04]} 19. Nd3 {[%emt 0:02:48]} Ne4 {[%emt 0:01:59]} 20. Nxe4 {[%emt 0:01:32]} fxe4 {[%emt 0:04:20]} 21. Nc5 {[%emt 0:00:07]} b6 {[%emt 0:02:00]} 22. Nb3 {[%emt 0:00:08]} Rac8 {[%emt 0:01:29]} 23. a4 {[%emt 0:02:03]} f5 {[%emt 0:01:57]} 24. g3 {[%emt 0:01:08]} c5 {[%emt 0:05:30]} 25. dxc5 {[%emt 0:00:59]} Bxb2 {[%emt 0:01:00]} 26. Ra2 {[%emt 0:00:15]} Be5 {[%emt 0:03:21]} 27. c6 {[%emt 0:00:07]} Rf6 {[%emt 0:02:56]} 28. Nd4 {[%emt 0:04:47]} Bxd4 {[%emt 0:00:34]} 29. Qxd4 {[%emt 0:00:08]} Rcxc6 {[%emt 0:03:06]} 30. h4 {[%emt 0:00:59]} Rfd6 {[%emt 0:02:43]} 31. Qb4 {[%emt 0:00:11]} Qe5 {[%emt 0:04:35]} 32. Rb1 {[%emt 0:02:30]} a6 {[%emt 0:10:40]} 33. Qb3 {[%emt 0:02:10]} Qe6 {[%emt 0:01:41]} 34. Qxe6 {[%emt 0:07:58]} Rxe6 {[%emt 0:00:11]} 35. Rd2 {[%emt 0:00:58]} Red6 {[%emt 0:00:18]} 36. Rxd6 {[%emt 0:00:29]} Rxd6 {[%emt 0:00:06]} 37. f3 {[%emt 0:00:57]} Kg7 {[%emt 0:00:47]} 38. fxe4 {[%emt 0:00:15]} fxe4 {[%emt 0:00:06]} 39. Rb4 {[%emt 0:00:03]} Re6 {[%emt 0:00:22]} 40. Rd4 {[%emt 0:03:48]} Kf6 {[%emt 0:00:26]} 41. Rd5 {[%emt 0:00:11]} Rc6 {[%emt 0:00:55]} 42. Kf2 {[%emt 0:02:34]} Rc2+ {[%emt 0:04:23]} 43. Kf1 {[%emt 0:01:08]} Ra2 {[%emt 0:00:32]} 44. Rd6+ {[%emt 0:00:36]} Kf5 {[%emt 0:00:23]} 45. Rxb6 {[%emt 0:00:05]} Rxa4 {[%emt 0:00:10]} 46. Kg2 {[%emt 0:04:23]} Ra3 {[%emt 0:04:59]} 47. Rc6 {[%emt 0:00:48]} a5 {[%emt 0:00:34]} 48. Rc5+ {[%emt 0:00:13]} Ke6 {[%emt 0:00:19]} 49. Kf2 {[%emt 0:00:13]} Ra2+ {[%emt 0:00:17]} 50. Kf1 {[%emt 0:00:13]} a4 {[%emt 0:00:21]} 51. Ra5 {[%emt 0:00:30]} a3 {[%emt 0:00:53]} 52. Kg1 {[%emt 0:02:27]} Ra1+ {[%emt 0:00:25]} 53. Kg2 {[%emt 0:00:05]} a2 {[%emt 0:00:31]} 54. Kh2 {[%emt 0:00:12]} Kd6 {[%emt 0:00:05]} 55. Kg2 {[%emt 0:00:11]} Kc6 {[%emt 0:00:06]} 56. Kh2 {[%emt 0:00:09]} Kb6 {[%emt 0:00:04]} 57. Ra8 {[%emt 0:00:05]} Kb5 {[%emt 0:00:17]} 58. Kg2 {[%emt 0:00:06]} Kc4 {[%emt 0:00:09]} 59. Kh2 {[%emt 0:00:10]} Kd3 {[%emt 0:00:12]} 60. Ra3+ {[%emt 0:00:05]} Kd2 {[%emt 0:00:13]} 61. Kg2 {[%emt 0:00:28]} Ke2 {[%emt 0:00:05]} 62. g4 {[%emt 0:00:23]} hxg4 {[%emt 0:00:07]} 63. h5 {[%emt 0:00:27]} gxh5 {[%emt 0:00:09]} 64. Kh2 {[%emt 0:00:04]} Kf2 {[%emt 0:00:40]} 0-1

[Event "ISR Youth-Ch Finals 2021 U18"]
[Site "Ramat Hasharon"]
[Date "2021.03.22"]
[Round "3.9"]
[White "Gov, Guy"]
[Black "Neiman, Maks"]
[Result "0-1"]
[ECO "A06"]
[WhiteElo "2095"]
[BlackElo "1993"]
[Annotator "RC"]
[PlyCount "82"]
[EventDate "2021.03.19"]
[EventType "swiss"]
[EventCountry "ISR"]
[SourceTitle "playchess.com"]
[Source "ChessBase"]
[SourceQuality "1"]
[TimeControl "5400+30"]

1. Nf3 {[%emt 0:12:32]} Nf6 {[%emt 0:10:21]} 2. b3 {[%emt 0:00:39]} d5 {[%emt 0:02:20]} 3. Bb2 {[%emt 0:00:18]} Bf5 {[%emt 0:00:53]} 4. d3 {[%emt 0:03:32]} e6 {[%emt 0:07:05]} 5. g3 {[%emt 0:04:08]} c5 {[%emt 0:01:01]} 6. Bg2 {[%emt 0:00:28]} h6 {[%emt 0:01:27]} 7. Nbd2 {[%emt 0:01:03]} Nc6 {[%emt 0:02:13]} 8. O-O {[%emt 0:02:38]} Be7 {[%emt 0:01:00]} 9. Re1 {[%emt 0:05:45]} O-O {[%emt 0:03:49]} 10. e4 {[%emt 0:07:44]} Bh7 {[%emt 0:00:50]} 11. e5 {[%emt 0:07:45]} Nd7 {[%emt 0:01:17]} 12. Qe2 {[%emt 0:00:19]} b5 {[%emt 0:04:59]} 13. a3 {[%emt 0:03:27]} Nb6 {[%emt 0:05:32]} 14. Kh1 {[%emt 0:04:14]} a5 {[%emt 0:02:55]} 15. Rg1 {[%emt 0:02:59]} a4 {[%emt 0:04:18]} 16. Ne1 {[%emt 0:07:11]} Qd7 {[%emt 0:15:43]} 17. f4 {[%emt 0:02:36]} Rab8 {[%emt 0:04:52]} 18. g4 {[%emt 0:01:13]} axb3 {[%emt 0:01:04]} 19. cxb3 {[%emt 0:00:29]} c4 {[%emt 0:00:33]} 20. dxc4 {[%emt 0:02:43]} bxc4 {[%emt 0:00:21]} 21. bxc4 {[%emt 0:00:37]} Na4 {[%emt 0:05:43]} 22. Bc1 {[%emt 0:06:34]} Nd4 {[%emt 0:00:20]} 23. Qf1 {[%emt 0:01:16]} dxc4 {[%emt 0:03:25]} 24. g5 {[%emt 0:06:28]} hxg5 {[%emt 0:02:18]} 25. Be4 {[%emt 0:15:52]} c3 {[%emt 0:04:25]} 26. Bxh7+ {[%emt 0:00:00]} Kxh7 {[%emt 0:00:04]} 27. Qd3+ {[%emt 0:00:00]} Kg8 {[%emt 0:00:21]} 28. Ndf3 {[%emt 0:00:00]} Rfd8 {[%emt 0:00:26]} 29. Nxg5 {[%emt 0:00:00]} Bxg5 {[%emt 0:01:56]} 30. Rxg5 {[%emt 0:00:00]} Qc6+ {[%emt 0:01:07]} 31. Rg2 {[%emt 0:00:00]} Nb3 {[%emt 0:01:45]} 32. Qg3 {[%emt 0:00:00]} g6 {[%emt 0:00:14]} 33. f5 {[%emt 0:00:00]} exf5 {[%emt 0:00:26]} 34. Bg5 {[%emt 0:00:00]} Nxa1 {[%emt 0:01:31]} 35. Bf6 {[%emt 0:00:00]} Rd1 {[%emt 0:01:08]} 36. e6 {[%emt 0:00:00]} Rxe1+ {[%emt 0:01:46]} 37. Qxe1 {[%emt 0:00:00]} Qe4 {[%emt 0:02:11]} 38. Qxe4 {[%emt 0:00:00]} fxe4 {[%emt 0:00:09]} 39. e7 {[%emt 0:00:00]} c2 {[%emt 0:07:42]} 40. Bg5 {[%emt 0:00:00]} f6 {[%emt 0:00:30]} 41. Bc1 {[%emt 0:08:00]} Kf7 {[%emt 0:00:30]} 0-1

[Event "ISR Youth-Ch Finals 2021 U18"]
[Site "Ramat Hasharon"]
[Date "2021.03.22"]
[Round "3.11"]
[White "Sheinkman, Lidan"]
[Black "Sobel, Alon"]
[Result "1/2-1/2"]
[ECO "E09"]
[WhiteElo "1895"]
[BlackElo "1825"]
[Annotator "NA RC"]
[PlyCount "40"]
[EventDate "2021.03.19"]
[EventType "swiss"]
[EventCountry "ISR"]
[SourceTitle "playchess.com"]
[Source "ChessBase"]
[SourceQuality "1"]
[TimeControl "5400+30"]

1. d4 {[%emt 0:03:07]} d5 {[%emt 0:01:03]} 2. c4 {[%emt 0:00:49]} e6 {[%emt 0:00:05]} 3. g3 {[%emt 0:00:04]} Nf6 {[%emt 0:00:06]} 4. Nf3 {[%emt 0:00:05]} Nbd7 {[%emt 0:00:09]} 5. Bg2 {[%emt 0:00:08]} c6 {[%emt 0:00:08]} 6. O-O {[%emt 0:02:54]} Be7 {[%emt 0:00:40]} 7. Qc2 {[%emt 0:01:29]} O-O {[%emt 0:01:28]} 8. Nbd2 {[%emt 0:00:54]} b6 $11 {[%emt 0:06:19]} 9. e4 {[%emt 0:00:36]} dxe4 10. Nxe4 {[%emt 0:00:04]} Bb7 {[%emt 0:01:11]} 11. Ne5 {[%emt 0:03:10]} Qc8 {[%emt 0:12:02]} 12. Rd1 {[%emt 0:08:34]} Rd8 {[%emt 0:07:07]} 13. b3 {[%emt 0:09:51]} c5 {[%emt 0:02:57]} 14. Ba3 {[%emt 0:10:18]} Nxe5 {[%emt 1:03:45]} 15. dxe5 {[%emt 0:00:19]} Nxe4 {[%emt 0:00:00]} 16. Bxe4 {[%emt 0:00:08]} Bxe4 {[%emt 0:00:00]} 17. Qxe4 {[%emt 0:00:16]} Qc7 {[%emt 0:00:00]} 18. Bb2 {[%emt 0:08:58]} Rac8 {[%emt 0:00:00]} 19. Qg4 {[%emt 0:47:46]} Rxd1+ {[%emt 0:00:00]} 20. Rxd1 {[%emt 0:00:00]} Rd8 {[%emt 0:00:00]} 1/2-1/2

[Event "ISR Youth-Ch Finals 2021 U18"]
[Site "Ramat Hasharon"]
[Date "2021.03.23"]
[Round "5.2"]
[White "Gorodetzky, Matan"]
[Black "Tzidkiya, Yeshaayahu"]
[Result "0-1"]
[ECO "B31"]
[WhiteElo "2253"]
[BlackElo "2380"]
[Annotator "ChessBase"]
[PlyCount "118"]
[EventDate "2021.03.19"]
[EventType "swiss"]
[EventCountry "ISR"]
[SourceTitle "playchess.com"]
[Source "ChessBase"]
[SourceQuality "1"]
[TimeControl "5400+30"]

1. e4 {[%emt 0:00:00]} c5 {[%emt 0:01:28]} 2. Nf3 {[%emt 0:00:00]} Nc6 {[%emt 0:00:18]} 3. Bb5 {[%emt 0:00:00]} g6 {[%emt 0:00:12]} 4. O-O {[%emt 0:00:12]} Bg7 {[%emt 0:00:07]} 5. Re1 {[%emt 0:00:22]} Nf6 {[%emt 0:01:59]} 6. c3 {[%emt 0:00:10]} O-O {[%emt 0:00:06]} 7. d4 {[%emt 0:00:07]} a6 {[%emt 0:02:13]} 8. Bf1 {[%emt 0:01:59]} d5 {[%emt 0:01:14]} 9. exd5 {[%emt 0:06:44]} Qxd5 {[%emt 0:02:49]} 10. dxc5 {[%emt 0:02:19]} Qxc5 {[%emt 0:04:25]} 11. Be3 {[%emt 0:00:22]} Qh5 {[%emt 0:06:56]} 12. h3 {[%emt 0:03:49]} Rd8 {[%emt 0:20:25]} 13. Qe2 {[%emt 0:17:06]} Bf5 {[%emt 0:06:29]} 14. Nd4 {[%emt 0:02:55]} Nxd4 {[%emt 0:21:27]} 15. Bxd4 {[%emt 0:03:24]} Bg4 {[%emt 0:09:58]} 16. Qc2 {[%emt 0:09:48]} Be6 {[%emt 0:01:39]} 17. Be2 {[%emt 0:11:22]} Qg5 {[%emt 0:01:19]} 18. Be3 {[%emt 0:00:29]} Qh4 {[%emt 0:01:14]} 19. Nd2 {[%emt 0:01:12]} Nd5 {[%emt 0:00:16]} 20. Nf1 {[%emt 0:07:43]} Rac8 {[%emt 0:02:42]} 21. Bf3 {[%emt 0:01:29]} b5 {[%emt 0:01:03]} 22. Bd2 {[%emt 0:05:11]} Nb4 {[%emt 0:03:06]} 23. Qe4 {[%emt 0:00:06]} Qxe4 {[%emt 0:00:22]} 24. Bxe4 {[%emt 0:04:20]} Nd3 {[%emt 0:00:40]} 25. Bxd3 {[%emt 0:00:05]} Rxd3 {[%emt 0:00:03]} 26. Bg5 {[%emt 0:00:39]} b4 {[%emt 0:02:24]} 27. cxb4 {[%emt 0:02:13]} Bxb2 {[%emt 0:00:06]} 28. Rad1 {[%emt 0:01:16]} Rxd1 {[%emt 0:04:32]} 29. Rxd1 {[%emt 0:00:02]} f6 {[%emt 0:00:06]} 30. Be3 {[%emt 0:00:21]} Ba3 {[%emt 0:00:28]} 31. Bd2 {[%emt 0:09:07]} Rc2 {[%emt 0:00:44]} 32. Ne3 {[%emt 0:02:43]} Rxa2 {[%emt 0:00:55]} 33. Bc3 {[%emt 0:00:06]} Kf7 {[%emt 0:02:49]} 34. Rb1 {[%emt 0:00:31]} Bd7 {[%emt 0:00:39]} 35. g4 {[%emt 0:01:21]} Bc6 {[%emt 0:01:00]} 36. h4 {[%emt 0:01:58]} Be4 {[%emt 0:00:25]} 37. Rb3 {[%emt 0:00:29]} Bc1 {[%emt 0:00:16]} 38. Bd4 {[%emt 0:01:00]} e5 {[%emt 0:00:24]} 39. Bc5 {[%emt 0:00:06]} Ra1 {[%emt 0:00:28]} 40. Kh2 {[%emt 0:00:17]} f5 {[%emt 0:00:44]} 41. gxf5 {[%emt 0:03:09]} gxf5 {[%emt 0:00:04]} 42. Ng2 {[%emt 0:01:22]} Rb1 {[%emt 0:00:47]} 43. Rxb1 {[%emt 0:00:49]} Bxb1 {[%emt 0:00:05]} 44. Ne3 {[%emt 0:00:38]} Ke6 {[%emt 0:00:06]} 45. Kg2 {[%emt 0:01:13]} Bd3 {[%emt 0:00:15]} 46. f3 {[%emt 0:00:30]} f4 {[%emt 0:00:45]} 47. Nd1 {[%emt 0:00:19]} Kd5 {[%emt 0:00:47]} 48. Nc3+ {[%emt 0:00:37]} Kc4 {[%emt 0:00:06]} 49. Na4 {[%emt 0:00:05]} Bd2 {[%emt 0:01:46]} 50. Bd6 {[%emt 0:01:18]} Kd5 {[%emt 0:00:33]} 51. Bf8 {[%emt 0:00:23]} e4 {[%emt 0:00:16]} 52. fxe4+ {[%emt 0:00:38]} Bxe4+ {[%emt 0:00:04]} 53. Kh2 {[%emt 0:00:30]} f3 {[%emt 0:00:34]} 54. Bc5 {[%emt 0:00:07]} Bxb4 {[%emt 0:00:27]} 55. Bf2 {[%emt 0:00:42]} Kc6 {[%emt 0:00:25]} 56. Kg3 {[%emt 0:00:10]} Kb5 {[%emt 0:00:24]} 57. Nb2 {[%emt 0:00:07]} Bd6+ {[%emt 0:00:14]} 58. Kg4 {[%emt 0:00:06]} Bc5 {[%emt 0:00:13]} 59. Bxc5 {[%emt 0:00:22]} Kxc5 {[%emt 0:00:04]} 0-1

[Event "ISR Youth-Ch Finals 2021 U18"]
[Site "Ramat Hasharon"]
[Date "2021.03.23"]
[Round "5.3"]
[White "Ehrlich, Roy"]
[Black "Zemach, Roee"]
[Result "1-0"]
[ECO "C25"]
[WhiteElo "2004"]
[BlackElo "2292"]
[Annotator "ChessBase"]
[PlyCount "79"]
[EventDate "2021.03.19"]
[EventType "swiss"]
[EventCountry "ISR"]
[SourceTitle "playchess.com"]
[Source "ChessBase"]
[SourceQuality "1"]
[TimeControl "5400+30"]

1. e4 {[%emt 0:00:00]} e5 {[%emt 0:00:02]} 2. Nc3 {[%emt 0:00:00]} Nc6 {[%emt 0:01:05]} 3. g3 {[%emt 0:00:00]} g6 {[%emt 0:01:12]} 4. Bg2 {[%emt 0:00:00]} Bg7 {[%emt 0:00:30]} 5. Nge2 {[%emt 0:00:45]} Nge7 {[%emt 0:00:53]} 6. Nd5 {[%emt 0:04:26]} d6 {[%emt 0:04:55]} 7. h3 {[%emt 0:03:12]} O-O {[%emt 0:06:05]} 8. O-O {[%emt 0:03:48]} Nxd5 {[%emt 0:05:48]} 9. exd5 {[%emt 0:00:05]} Ne7 {[%emt 0:00:08]} 10. d4 {[%emt 0:04:55]} exd4 {[%emt 0:07:51]} 11. Nxd4 {[%emt 0:00:07]} Nf5 {[%emt 0:00:10]} 12. Nb3 {[%emt 0:21:39]} a5 {[%emt 0:09:30]} 13. a4 {[%emt 0:00:53]} Bd7 {[%emt 0:06:03]} 14. Re1 {[%emt 0:08:10]} Re8 {[%emt 0:04:48]} 15. Be4 {[%emt 0:08:24]} Ne7 {[%emt 0:10:21]} 16. Kh2 {[%emt 0:04:33]} Nc8 {[%emt 0:01:16]} 17. c3 {[%emt 0:01:54]} Nb6 {[%emt 0:07:03]} 18. Nd4 {[%emt 0:00:07]} Qc8 {[%emt 0:02:13]} 19. h4 {[%emt 0:04:20]} c6 {[%emt 0:04:17]} 20. dxc6 {[%emt 0:01:19]} bxc6 {[%emt 0:00:13]} 21. Bf4 {[%emt 0:01:11]} Nc4 {[%emt 0:01:28]} 22. b3 {[%emt 0:05:45]} Ne5 {[%emt 0:00:18]} 23. Qd2 {[%emt 0:02:03]} Qa6 {[%emt 0:03:28]} 24. Bxe5 {[%emt 0:04:26]} dxe5 {[%emt 0:08:26]} 25. Nb5 {[%emt 0:01:40]} cxb5 {[%emt 0:03:02]} 26. Bxa8 {[%emt 0:00:24]} Be6 {[%emt 0:00:41]} 27. Bd5 {[%emt 0:01:50]} Rd8 {[%emt 0:01:03]} 28. axb5 {[%emt 0:01:13]} Qxb5 {[%emt 0:00:50]} 29. c4 {[%emt 0:00:06]} Qxb3 {[%emt 0:00:22]} 30. Qxa5 {[%emt 0:00:36]} Bf6 {[%emt 0:02:20]} 31. Bxe6 {[%emt 0:02:51]} fxe6 {[%emt 0:00:07]} 32. Qa2 {[%emt 0:00:14]} Qf3 {[%emt 0:01:12]} 33. Qe2 {[%emt 0:01:06]} Qc6 {[%emt 0:00:29]} 34. Rac1 {[%emt 0:01:02]} Rd4 {[%emt 0:00:13]} 35. c5 {[%emt 0:00:51]} e4 {[%emt 0:00:54]} 36. Rc4 {[%emt 0:00:27]} Kf7 {[%emt 0:00:49]} 37. Rd1 {[%emt 0:00:54]} e5 {[%emt 0:00:22]} 38. Rc2 {[%emt 0:03:39]} Qd5 {[%emt 0:01:48]} 39. Ra1 {[%emt 0:01:27]} e3 {[%emt 0:02:02]} 40. fxe3 {[%emt 0:00:48]} 1-0

[Event "ISR Youth-Ch Finals 2021 U18"]
[Site "Ramat Hasharon"]
[Date "2021.03.23"]
[Round "5.4"]
[White "Katkov, Michelle"]
[Black "Milikow, Yoav"]
[Result "1/2-1/2"]
[ECO "C55"]
[WhiteElo "2078"]
[BlackElo "2302"]
[Annotator "ChessBase"]
[PlyCount "59"]
[EventDate "2021.03.19"]
[EventType "swiss"]
[EventCountry "ISR"]
[SourceTitle "playchess.com"]
[Source "ChessBase"]
[SourceQuality "1"]
[TimeControl "5400+30"]

1. e4 {[%emt 0:00:00]} e5 {[%emt 0:00:00]} 2. Nf3 {[%emt 0:00:00]} Nc6 {[%emt 0:00:00]} 3. Bc4 {[%emt 0:00:00]} Nf6 {[%emt 0:00:00]} 4. d3 {[%emt 0:00:00]} h6 {[%emt 0:00:00]} 5. Nc3 {[%emt 0:05:15]} d6 {[%emt 0:02:59]} 6. a4 {[%emt 0:03:18]} Be6 {[%emt 0:01:54]} 7. Nd5 {[%emt 0:07:49]} Bxd5 {[%emt 0:03:36]} 8. Bxd5 {[%emt 0:00:22]} Nxd5 {[%emt 0:00:32]} 9. exd5 {[%emt 0:00:04]} Ne7 {[%emt 0:00:32]} 10. c4 {[%emt 0:00:14]} c6 {[%emt 0:03:42]} 11. dxc6 {[%emt 0:00:29]} Nxc6 {[%emt 0:00:34]} 12. O-O {[%emt 0:01:17]} Be7 {[%emt 0:02:00]} 13. Re1 {[%emt 0:03:59]} O-O {[%emt 0:03:16]} 14. Bd2 {[%emt 0:01:16]} Bf6 {[%emt 0:01:43]} 15. Bc3 {[%emt 0:00:55]} Re8 {[%emt 0:01:29]} 16. Qc2 {[%emt 0:07:04]} a5 {[%emt 0:04:56]} 17. Qb3 {[%emt 0:05:31]} Qd7 {[%emt 0:01:40]} 18. Qb5 {[%emt 0:04:55]} g6 {[%emt 0:07:53]} 19. d4 {[%emt 0:06:27]} exd4 {[%emt 0:01:18]} 20. Nxd4 {[%emt 0:00:57]} Rxe1+ {[%emt 0:02:37]} 21. Rxe1 {[%emt 0:00:05]} Re8 {[%emt 0:00:59]} 22. Rxe8+ {[%emt 0:08:29]} Qxe8 {[%emt 0:00:54]} 23. Nf3 {[%emt 0:01:05]} Bxc3 {[%emt 0:03:00]} 24. bxc3 {[%emt 0:00:05]} Qe2 {[%emt 0:02:34]} 25. h3 {[%emt 0:00:18]} Qd1+ {[%emt 0:02:16]} 26. Kh2 {[%emt 0:00:07]} Qc1 {[%emt 0:00:38]} 27. Qxb7 {[%emt 0:01:28]} Qf4+ {[%emt 0:00:08]} 28. Kg1 {[%emt 0:01:45]} Qc1+ {[%emt 0:00:20]} 29. Kh2 {[%emt 0:00:05]} Qf4+ {[%emt 0:00:06]} 30. Kg1 {[%emt 0:00:18]} 1/2-1/2

[Event "ISR Youth-Ch Finals 2021 U18"]
[Site "Ramat Hasharon"]
[Date "2021.03.23"]
[Round "5.5"]
[White "Gorshtein, Asaf"]
[Black "Neiman, Maks"]
[Result "1-0"]
[ECO "C06"]
[WhiteElo "2122"]
[BlackElo "1993"]
[Annotator "ChessBase"]
[PlyCount "59"]
[EventDate "2021.03.19"]
[EventType "swiss"]
[EventCountry "ISR"]
[SourceTitle "playchess.com"]
[Source "ChessBase"]
[SourceQuality "1"]
[TimeControl "5400+30"]

1. e4 {[%emt 0:00:00]} e6 {[%emt 0:08:05]} 2. d4 {[%emt 0:00:00]} d5 {[%emt 0:00:11]} 3. Nd2 {[%emt 0:00:00]} Nf6 {[%emt 0:00:53]} 4. e5 {[%emt 0:00:00]} Nfd7 {[%emt 0:00:04]} 5. Bd3 {[%emt 0:00:00]} c5 {[%emt 0:00:06]} 6. c3 {[%emt 0:00:00]} Nc6 {[%emt 0:00:12]} 7. Ne2 {[%emt 0:00:03]} cxd4 {[%emt 0:00:07]} 8. cxd4 {[%emt 0:00:06]} f6 {[%emt 0:00:17]} 9. exf6 {[%emt 0:00:06]} Nxf6 {[%emt 0:00:08]} 10. Nf3 {[%emt 0:00:08]} Bd6 {[%emt 0:00:43]} 11. Bf4 {[%emt 0:00:19]} Bxf4 {[%emt 0:02:23]} 12. Nxf4 {[%emt 0:00:08]} O-O {[%emt 0:00:08]} 13. O-O {[%emt 0:00:07]} Ne4 {[%emt 0:00:27]} 14. Qc1 {[%emt 0:00:09]} Ng5 {[%emt 0:05:00]} 15. Nxg5 {[%emt 0:00:07]} Qxg5 {[%emt 0:00:06]} 16. Ne2 {[%emt 0:00:06]} Qf6 {[%emt 0:02:03]} 17. Qd2 {[%emt 0:00:12]} Kh8 {[%emt 0:03:01]} 18. Rac1 {[%emt 0:01:42]} Nxd4 {[%emt 0:07:26]} 19. Nxd4 {[%emt 0:00:23]} Qxd4 {[%emt 0:00:12]} 20. Rc7 {[%emt 0:00:48]} e5 {[%emt 0:11:25]} 21. Qg5 {[%emt 0:07:32]} e4 {[%emt 0:00:24]} 22. Bc2 {[%emt 0:00:49]} b6 {[%emt 0:04:20]} 23. Qg3 {[%emt 0:02:05]} Be6 {[%emt 0:03:23]} 24. Bb3 {[%emt 0:03:16]} a5 {[%emt 0:09:33]} 25. Qd6 {[%emt 0:05:05]} a4 {[%emt 0:10:58]} 26. Bxa4 {[%emt 0:05:37]} Bg4 {[%emt 0:04:04]} 27. Bc6 {[%emt 0:02:36]} Be2 {[%emt 0:01:45]} 28. Bxa8 {[%emt 0:02:36]} Rxf2 {[%emt 0:00:24]} 29. Rc8+ {[%emt 0:00:20]} Rf8+ {[%emt 0:00:42]} 30. Kh1 {[%emt 0:00:05]} 1-0

[Event "ISR Youth-Ch Finals 2021 U18"]
[Site "Ramat Hasharon"]
[Date "2021.03.23"]
[Round "5.6"]
[White "Kadria, Shay"]
[Black "Cohen Revivo, Shoham"]
[Result "1-0"]
[ECO "B31"]
[WhiteElo "2086"]
[BlackElo "2171"]
[Annotator "ChessBase"]
[PlyCount "65"]
[EventDate "2021.03.19"]
[EventType "swiss"]
[EventCountry "ISR"]
[SourceTitle "playchess.com"]
[Source "ChessBase"]
[SourceQuality "1"]
[TimeControl "5400+30"]

1. e4 {[%emt 0:00:00]} c5 {[%emt 0:09:06]} 2. Nf3 {[%emt 0:00:15]} Nc6 {[%emt 0:00:06]} 3. Bb5 {[%emt 0:01:14]} g6 {[%emt 0:00:39]} 4. O-O {[%emt 0:00:17]} Bg7 {[%emt 0:00:09]} 5. c3 {[%emt 0:00:58]} Nf6 {[%emt 0:01:12]} 6. Re1 {[%emt 0:03:26]} O-O {[%emt 0:00:24]} 7. d4 {[%emt 0:01:35]} cxd4 {[%emt 0:00:15]} 8. cxd4 {[%emt 0:00:27]} d5 {[%emt 0:00:04]} 9. e5 {[%emt 0:01:15]} Ne4 {[%emt 0:00:04]} 10. Nc3 {[%emt 0:02:54]} Bf5 {[%emt 0:01:35]} 11. Bd3 {[%emt 0:03:15]} Nxc3 {[%emt 0:00:19]} 12. bxc3 {[%emt 0:00:09]} Bxd3 {[%emt 0:00:03]} 13. Qxd3 {[%emt 0:00:10]} Na5 {[%emt 0:01:24]} 14. e6 {[%emt 0:02:59]} f6 {[%emt 0:00:28]} 15. h4 {[%emt 0:04:00]} Rc8 {[%emt 0:11:57]} 16. h5 {[%emt 0:00:54]} g5 {[%emt 0:00:43]} 17. Bxg5 {[%emt 0:00:57]} Qe8 {[%emt 0:02:41]} 18. h6 {[%emt 0:02:40]} fxg5 {[%emt 0:03:37]} 19. hxg7 {[%emt 0:00:27]} Rf6 {[%emt 0:00:12]} 20. Re5 {[%emt 0:02:19]} h6 {[%emt 0:06:57]} 21. Rxd5 {[%emt 0:01:49]} Nc4 {[%emt 0:00:42]} 22. Rd7 {[%emt 0:03:30]} Nd6 {[%emt 0:01:57]} 23. d5 {[%emt 0:00:38]} g4 {[%emt 0:03:13]} 24. Ne5 {[%emt 0:04:27]} Qh5 {[%emt 0:00:44]} 25. Re1 {[%emt 0:01:18]} Rf5 {[%emt 0:02:53]} 26. Qe2 {[%emt 0:06:15]} Rxc3 {[%emt 0:00:25]} 27. Nxg4 {[%emt 0:03:36]} Rc8 {[%emt 0:04:23]} 28. Rxd6 {[%emt 0:02:08]} Qh4 {[%emt 0:01:04]} 29. Qe4 {[%emt 0:02:49]} Rh5 {[%emt 0:06:07]} 30. g3 {[%emt 0:00:23]} Qh3 {[%emt 0:00:44]} 31. Qf3 {[%emt 0:00:41]} Kh7 {[%emt 0:02:18]} 32. Rd7 {[%emt 0:00:35]} Rc3 {[%emt 0:01:25]} 33. g8=Q+ {[%emt 0:48:10]} 1-0